lending/lending_fUSD_20260209
["ID","MTS","AMOUNT","RATE_DAILY","PERIOD"]
[404836748,1770607869349,-565.08,0.00044441,120]
[404836749,1770607869359,-686.34,0.00044442,120]
[404836750,1770607869369,-686.34,0.00044442,120]
[404836751,1770607869378,-686.34,0.00044442,120]
[404836752,1770607869387,-686.34,0.00044442,120]
[404836753,1770607869396,-686.34,0.00044442,120]
[404836754,1770607869405,-686.34,0.00044442,120]
[404836755,1770607869414,-686.34696573,0.00044442,120]
[404836756,1770607869424,-200.0,0.00044442,120]
[404836757,1770607869433,-152.32156984,0.00044443,30]
[404836758,1770607869443,-151.0,0.00044443,30]
[404836759,1770607869455,-500.0,0.00044443,120]
[404836760,1770607869472,-500.0,0.00044443,120]
[404836761,1770607869485,-500.0,0.00044443,120]
[404836762,1770607869498,-333.45768426,0.00044443,120]
[404836763,1770607869512,-500.0,0.00044443,120]
[404836764,1770607869527,-500.0,0.00044443,120]
[404836765,1770607869543,-545.96593885,0.00044443,120]
[404836766,1770607869559,-150.0,0.00044443,30]
[404836767,1770607869574,-150.0,0.00044443,30]
[404836768,1770607869587,-150.0,0.00044443,30]
[404836769,1770607869598,-150.0,0.00044443,30]
[404836770,1770607869613,-150.00000001,0.00044443,30]
[404836771,1770607869627,-150.0,0.00044443,30]
[404836772,1770607869642,-150.0,0.00044443,30]
[404836773,1770607869656,-289.59268429,0.00044443,120]
[404836774,1770607869670,-500.0,0.00044443,120]
[404836775,1770607869683,-500.0,0.00044443,120]
[404836776,1770607869699,-298.52,0.00044443,120]
[404836777,1770607869721,-500.0,0.00044443,120]
[404836778,1770607869734,-500.0,0.00044443,120]
[404836779,1770607869747,-501.75,0.00044443,120]
[404836780,1770607869762,-382.76,0.0004445,120]
[404836781,1770607869777,-500.0,0.0004445,120]
[404836782,1770607869791,-333.19,0.0004445,120]
[404836783,1770607869805,-151.0,0.00044451,120]
[404836784,1770607869816,-151.0,0.00044451,120]
[404836785,1770607869829,-151.0,0.00044451,120]
[404836786,1770607869844,-151.0,0.00044451,120]
[404836787,1770607869858,-151.0,0.00044451,120]
[404836788,1770607869870,-151.0,0.00044451,120]
[404836789,1770607869881,-151.0,0.00044451,120]
[404836790,1770607869894,-151.0,0.00044451,120]
[404836791,1770607869908,-151.0,0.00044451,120]
[404836792,1770607869919,-151.0,0.00044451,120]
[404836793,1770607869931,-151.0,0.00044451,120]
[404836794,1770607869945,-151.0,0.00044451,120]
[404836795,1770607869957,-219.113498,0.00044451,120]
[404836796,1770607869969,-154.876343,0.00044451,120]
[404836797,1770607869982,-154.248476,0.00044453,60]
[404836798,1770607869994,-155.222338,0.00044453,120]
[404836799,1770607870007,-151.0,0.00044453,120]
[404836800,1770607870019,-167.059965,0.00044453,120]
[404836801,1770607870031,-151.0,0.00044453,120]
[404836802,1770607870043,-151.0,0.00044453,120]
[404836803,1770607870055,-156.529385,0.00044453,120]
[404836804,1770607870067,-151.0,0.00044453,120]
[404836805,1770607870078,-151.0,0.00044453,120]
[404836806,1770607870091,-151.0,0.00044453,120]
[404836807,1770607870103,-116726.66314333,0.00044455,54]
[404836808,1770607870114,-5162021.15518327,0.00044455,10]
[404836809,1770607870608,-3485.0,0.00041715,2]
[404836810,1770607870622,-500.0,0.00044356,120]
[404836811,1770607870634,-500.0,0.00044356,120]
[404836812,1770607870645,-228.211159,0.00044356,120]
[404836813,1770607870657,-591.16857922,0.00044356,120]
[404836814,1770607870669,-500.0,0.00044356,120]
[404836815,1770607870681,-185.76478673,0.00044356,120]
[404836816,1770607870693,-151.0,0.00044453,120]
[404836817,1770607870704,-29333.22603221,0.00044455,10]
[404836818,1770607870721,-9941.74180896,0.00044455,10]
[404836819,1770607870735,-410.07653596,0.00044455,10]
[404836820,1770607870749,-165477.65506836,0.00044455,10]
[404836821,1770607870764,-66898.37856791,0.00044455,10]
[404836822,1770607870777,-449.495,0.00044455,10]
[404836823,1770607870796,-386.49005528,0.00044455,10]
[404836824,1770607870810,-1219.4810845,0.00044455,10]
[404836825,1770607870824,-1421322.95785393,0.00044455,10]
[404836826,1770607870950,-345.99860319,0.0004,5]
[404836827,1770607870964,-154.00139681,0.0004,5]
[404836828,1770607870977,-1000.0,0.00040548,5]
[404836829,1770607870989,-504.35415477,0.00041096,10]
[404836830,1770607871000,-4458.71651216,0.00044455,10]
[404836831,1770607871015,-600483.59054284,0.00044455,10]
[404836832,1770607871028,-557.96001026,0.00044455,10]
[404836833,1770607871042,-4441.23959371,0.00044455,10]
[404836834,1770607871057,-7278.78791481,0.00044455,10]
[404836835,1770607871073,-1417.72,0.00044455,10]
[404836836,1770607871463,-500.0,0.0004,3]
[404836837,1770607871473,-977.92874575,0.00040548,3]
[404836838,1770607871484,-22.07125425,0.00040548,3]
[404836839,1770607871494,-159.05717946,0.00041096,3]
[404836840,1770607871504,-534.57145302,0.00044455,10]
[404836841,1770607871534,-521.50544742,0.00044455,10]
[404836842,1770607871549,-2187.31524543,0.00044455,10]
[404836843,1770607871560,-244921.42492602,0.00044455,10]
[404836844,1770607872530,500.0,0.00017999,2]
[404836845,1770607872564,243.96738448,0.00017999,2]
[404836846,1770607872664,500.0,0.00019799,120]
[404836847,1770607872720,481.52840311,0.00029,120]
[404836848,1770607925567,195.0,0.00021779,120]
[404836849,1770607925667,195.0,0.00024399,120]
[404836850,1770607925914,195.0,0.00027871,120]
[404836851,1770607926046,195.0,0.00027871,120]
[404836852,1770607928872,25076.1958972,0.00035616,30]
[404836853,1770608089935,242.98792402,0.00017999,2]
[404836854,1770608093394,500.0,0.00017999,2]
[404836855,1770608093816,500.0,0.00017999,2]
[404836856,1770608094125,500.0,0.00017999,2]
[404836857,1770608094425,485.14006404,0.00017999,2]
[404836858,1770608098673,165.73720738,0.00017999,2]
[404836859,1770608106889,500.0,0.00017999,2]
[404836860,1770608106917,500.0,0.00017999,2]
[404836861,1770608106946,500.0,0.00017999,2]
[404836862,1770608106975,500.0,0.00017999,2]
[404836863,1770608107003,500.0,0.00017999,2]
[404836864,1770608107036,442.01794453,0.00017999,2]
[404836865,1770608107085,500.0,0.00017999,2]
[404836866,1770608107122,500.0,0.00017999,2]
[404836867,1770608107192,500.0,0.00017999,2]
[404836868,1770608107242,500.0,0.00017999,2]
[404836869,1770608107407,500.0,0.00017999,2]
[404836870,1770608107454,500.0,0.00017999,2]
[404836871,1770608113382,500.0,0.00017999,2]
[404836872,1770608138919,-250.0,0.00019799,2]
[404836873,1770608138946,-162.29867449,0.00019799,2]
[404836875,1770608542551,-172.65,0.000198,2]
[404836876,1770608542574,-174.93815216,0.000198,2]
[404836877,1770608542596,-322.0,0.000198,2]
[404836878,1770608542618,-298.64082891,0.00019823,2]
[404836879,1770608542641,-435.78281976,0.00019894,2]
[404836880,1770608905859,243.83144003,0.00035,30]
[404836891,1770609031707,-214.21,0.000217,2]
[404836892,1770609031716,-344.0,0.000217,2]
[404836893,1770609031725,-250.0,0.00021718,2]
[404836894,1770609031734,-482.41410882,0.00021756,2]
[404836895,1770609031743,-250.0,0.00022261,2]
[404836896,1770609031752,-298.28514211,0.00023864,2]
[404836897,1770609031761,-250.0,0.0002387,2]
[404836898,1770609031771,-482.41410882,0.00025178,2]
[404836899,1770609031779,-482.41410882,0.00026318,2]
[404836900,1770609031788,-482.41410882,0.000286,2]
[404836901,1770609031798,-250.0,0.00028673,2]
[404836902,1770609031807,-298.28514211,0.00029612,2]
[404836903,1770609031816,-227.45,0.00029664,2]
[404836904,1770609031825,-229.3131805,0.0002974,2]
[404836905,1770609031836,-253.10092832,0.0002974,2]
[404836906,1770609031846,-1186.6,0.00030327,2]
[404836907,1770609031855,-1600.0,0.00030566,2]
[404836908,1770609031864,-300.0,0.00030567,2]
[404836909,1770609031873,-183.0,0.00030567,2]
[404836910,1770609031882,-18492.06,0.00030569,2]
[404836911,1770609031891,-482.41410882,0.00030881,2]
[404836912,1770609031900,-7893.21002689,0.00031318,2]
[404836913,1770609031909,-1186.6,0.0003161,2]
[404836914,1770609031918,-172.33350572,0.00031884,2]
[404836915,1770609031927,-482.41410882,0.00032021,2]
[404836916,1770609031936,-300.0,0.00032231,2]
[404836917,1770609031945,-9999.99,0.00032232,2]
[404836918,1770609031955,-150.99,0.00032232,2]
[404836919,1770609031964,-999.99,0.00032232,2]
[404836920,1770609031974,-4440.32,0.00032695,2]
[404836921,1770609031982,-1186.6,0.00032893,2]
[404836922,1770609031991,-1048.0,0.00033063,3]
[404836923,1770609032000,-482.41410882,0.00033162,2]
[404836924,1770609032010,-1186.6,0.00034176,5]
[404836925,1770609032019,-482.41410882,0.00034302,2]
[404836926,1770609032029,-802.44142686,0.000352,5]
[404836927,1770609032038,-1049.48,0.00035305,2]
[404836928,1770609032047,-298.28514211,0.00035359,2]
[404836929,1770609032056,-2221.36528268,0.00035377,2]
[404836930,1770609032068,-251.13471732,0.00035377,2]
[404836931,1770609032078,-1186.6,0.00035459,5]
[404836932,1770609032087,-180.96183583,0.00035588,2]
[404836933,1770609032098,-1217.37507571,0.00035588,2]
[404836934,1770609032110,-3601.66308846,0.00035588,2]
[404836935,1770609032120,-66.44827179,0.00035712,2]
[404836938,1770609037725,-354.0347142,0.00035712,2]
[404836939,1770609037833,-473.48701401,0.00035712,2]
[404836940,1770609037843,-1876.99,0.00035805,2]
[404836941,1770609037854,-150.0,0.0003602,2]
[404836942,1770609037864,-1000.0,0.00036039,2]
[404836943,1770609037873,-200.0,0.00036452,2]
[404836944,1770609037883,-179.228,0.00036471,45]
[404836945,1770609037893,-2091.614,0.00036471,45]
[404836946,1770609037902,-1178.88098599,0.0003649,2]
[404836947,1770609037913,-728.23005447,0.0003649,2]
[404836948,1770609037924,-643.15895954,0.0003649,2]
[404836949,1770609037933,-117.60777246,0.00036558,2]
[404836950,1770609037943,-2432.66222754,0.00036558,2]
[404836951,1770609037952,-482.41410882,0.00036584,2]
[404836952,1770609037962,-2550.27,0.00036625,2]
[404836953,1770609037971,-2269.76970716,0.00036692,2]
[404836954,1770609037982,-280.50029284,0.00036692,2]
[404836955,1770609037991,-1186.6,0.00036742,7]
[404836956,1770609037999,-2550.27,0.00036759,2]
[404836957,1770609038008,-2550.27,0.00036826,2]
[404836958,1770609038018,-2550.27,0.00036894,2]
[404836959,1770609038028,-2550.27,0.00036961,2]
[404836960,1770609038040,-2550.27,0.00037028,2]
[404836961,1770609038049,-2550.27,0.00037095,2]
[404836962,1770609038058,-2550.27,0.00037162,2]
[404836963,1770609038067,-2550.27,0.0003723,2]
[404836964,1770609038078,-2550.27,0.00037297,2]
[404836965,1770609038087,-2550.27,0.00037364,2]
[404836966,1770609038096,-2550.27,0.00037431,2]
[404836968,1770609038106,-2550.27,0.00037498,2]
[404836970,1770609038117,-2550.27,0.00037566,2]
[404836972,1770609038126,-2550.27,0.00037633,2]
[404836974,1770609038134,-2550.27,0.000377,2]
[404836976,1770609038143,-482.41410882,0.00037724,2]
[404836978,1770609038152,-2550.27,0.00037767,2]
[404836980,1770609038162,-500.0,0.00037863,2]
[404836982,1770609038171,-1186.6,0.00038026,30]
[404836984,1770609038181,-183.14,0.00038369,3]
[404836986,1770609038190,-150.0,0.00038638,2]
[404836988,1770609038199,-1000.0,0.00038715,2]
[404836990,1770609038208,-482.41410882,0.00038865,2]
[404836992,1770609038218,-1186.6,0.00039309,30]
[404836994,1770609038227,-155.42088119,0.00039453,2]
[404836996,1770609038235,-541.85466405,0.0004,5]
[404836998,1770609038244,-544.38936191,0.0004,5]
[404837000,1770609038253,-500.0,0.0004,5]
[404837002,1770609038262,-491.56017181,0.0004,5]
[404837004,1770609038271,-500.0,0.0004,5]
[404837006,1770609038281,-448.66891635,0.0004,5]
[404837008,1770609038290,-482.41410882,0.00040005,2]
[404837010,1770609038299,-4201.55,0.0004023,2]
[404837011,1770609038308,-2000.0,0.000405,2]
[404837013,1770609038317,-1000.0,0.00040548,5]
[404837015,1770609038327,-1000.0,0.00040548,5]
[404837018,1770609038336,-300.0,0.00040548,2]
[404837020,1770609038346,-1079.4,0.00040585,120]
[404837021,1770609038355,-1186.6,0.00040592,120]
[404837023,1770609038364,-1079.4,0.00040791,120]
[404837025,1770609038373,-1079.4,0.00040998,120]
[404837027,1770609038382,-314.04026957,0.00041096,10]
[404837029,1770609038392,-1500.0,0.00041096,10]
[404837031,1770609038401,-482.41410882,0.00041146,2]
[404837033,1770609038411,-1079.4,0.00041204,120]
[404837035,1770609038421,-1079.4,0.00041411,120]
[404837038,1770609038430,-1079.4,0.00041617,120]
[404837040,1770609038439,-2000.0,0.00041644,10]
[404837042,1770609038448,-1079.4,0.00041823,120]
[404837044,1770609038458,-1186.6,0.00041875,120]
[404837046,1770609038467,-1079.4,0.0004203,120]
[404837048,1770609038476,-160.0,0.0004203,120]
[404837050,1770609038486,-1002.336663,0.00042192,10]
[404837052,1770609038495,-1079.4,0.00042236,120]
[404837054,1770609038503,-482.41410882,0.00042287,2]
[404837056,1770609038512,-1079.4,0.00042443,120]
[404837058,1770609038521,-1079.4,0.00042649,120]
[404837059,1770609038531,-800.0,0.0004274,7]
[404837062,1770609038540,-277.0,0.000428,60]
[404837064,1770609038550,-1079.4,0.00042855,120]
[404837066,1770609038561,-14785.0,0.00043036,30]
[404837067,1770609038571,-1079.4,0.00043062,120]
[404837070,1770609038580,-1146.46694464,0.00043108,2]
[404837072,1770609038589,-1186.6,0.00043158,120]
[404837074,1770609038599,-1079.4,0.00043268,120]
[404837076,1770609038608,-482.41410882,0.00043427,2]
[404837078,1770609038618,-1079.4,0.00043475,120]
[404837080,1770609038627,-14785.0,0.0004348,30]
[404837082,1770609038637,-1013.40617706,0.000435,120]
[404837084,1770609038646,-1000.0,0.00043554,2]
[404837085,1770609038657,-150.0,0.00043562,60]
[404837087,1770609038666,-150.0,0.00043562,2]
[404837089,1770609038675,-150.0,0.00043617,60]
[404837091,1770609038685,-253.69312086,0.00043672,60]
[404837093,1770609038694,-1079.4,0.00043681,120]
[404837095,1770609038703,-500.0,0.00043773,10]
[404837096,1770609038713,-500.0,0.00043773,10]
[404837097,1770609038722,-561.2285323,0.00043773,10]
[404837098,1770609038731,-211.45756918,0.000438,120]
[404837099,1770609038740,-2500.0,0.00043824,2]
[404837100,1770609038750,-1999.0,0.00043835,120]
[404837101,1770609038759,-14785.0,0.00043923,30]
[404837102,1770609038768,-10000.0,0.00044156,2]
[404837103,1770609038777,-2000.0,0.000442,2]
[404837104,1770609038787,-1169.4594,0.00044233,3]
[404837105,1770609038797,-2000.0,0.00044233,3]
[404837106,1770609038806,-3776.48728256,0.00044248,28]
[404837107,1770609038815,-163.3172,0.00044253,30]
[404837108,1770609038824,-500.0,0.00044253,2]
[404837109,1770609038834,-1000.0,0.00044256,2]
[404837110,1770609038843,-3776.48728256,0.00044262,28]
[404837111,1770609038852,-500.4722703,0.00044321,10]
[404837112,1770609038861,-1000.0,0.00044321,10]
[404837113,1770609038870,-3999.0,0.00044328,7]
[404837114,1770609038879,-27613.89490142,0.00044348,15]
[404837115,1770609038888,-27613.89490139,0.00044348,15]
[404837116,1770609038897,-27613.89490139,0.00044348,15]
[404837117,1770609038906,-27613.89490139,0.00044348,15]
[404837118,1770609038915,-27613.89490139,0.00044348,15]
[404837119,1770609038924,-27613.89490139,0.00044349,15]
[404837120,1770609038933,-27613.89490139,0.00044349,15]
[404837121,1770609038942,-27613.89490139,0.00044349,15]
[404837122,1770609038951,-27613.89490139,0.00044349,15]
[404837123,1770609038960,-221.80362856,0.00044349,19]
[404837124,1770609038970,-27613.89490139,0.00044349,15]
[404837125,1770609038979,-187.37750824,0.00044349,2]
[404837126,1770609038988,-1652.704102,0.00044349,2]
[404837127,1770609038997,-24117.0978125,0.00044349,2]
[404837128,1770609039006,-500.0,0.00044355,60]
[404837129,1770609039015,-500.0,0.00044355,60]
[404837130,1770609039025,-500.0,0.00044355,60]
[404837131,1770609039037,-500.0,0.00044355,60]
[404837132,1770609039047,-500.0,0.00044355,60]
[404837133,1770609039056,-401.59477055,0.00044355,60]
[404837134,1770609039065,-500.0,0.00044355,120]
[404837135,1770609039076,-500.0,0.00044356,120]
[404837136,1770609039085,-500.0,0.00044356,120]
[404837137,1770609039095,-545.96593885,0.00044356,120]
[404837138,1770609039106,-500.0,0.00044356,120]
[404837139,1770609039116,-500.0,0.00044356,120]
[404837140,1770609039126,-500.0,0.00044356,120]
[404837141,1770609039135,-289.59268429,0.00044356,120]
[404837142,1770609039145,-500.0,0.00044356,120]
[404837143,1770609039154,-500.0,0.00044356,120]
[404837144,1770609039163,-333.19,0.00044356,120]
[404837145,1770609039172,-500.0,0.00044356,120]
[404837146,1770609039181,-500.0,0.00044356,120]
[404837147,1770609039190,-235.03089166,0.00044356,120]
[404837148,1770609039201,-208.53,0.00044356,30]
[404837149,1770609039210,-500.0,0.00044356,120]
[404837150,1770609039219,-500.0,0.00044356,120]
[404837151,1770609039228,-298.52,0.00044356,120]
[404837152,1770609039238,-500.0,0.00044356,120]
[404837153,1770609039247,-500.0,0.00044356,120]
[404837154,1770609039256,-501.75,0.00044356,120]
[404837155,1770609039266,-551.36436425,0.00044356,120]
[404837156,1770609039275,-553.6,0.00044356,120]
[404837157,1770609039285,-500.0,0.00044356,120]
[404837158,1770609039294,-500.0,0.00044356,120]
[404837159,1770609039303,-500.0,0.00044356,120]
[404837160,1770609039313,-500.0,0.00044356,120]
[404837161,1770609039322,-603.27538205,0.00044356,120]
[404837162,1770609039333,-517.37460559,0.00044356,120]
[404837163,1770609039342,-500.0,0.00044356,120]
[404837164,1770609039352,-500.0,0.00044356,120]
[404837165,1770609039361,-500.0,0.00044356,120]
[404837166,1770609039371,-500.0,0.00044356,120]
[404837167,1770609039380,-500.0,0.00044356,120]
[404837168,1770609039390,-500.0,0.00044356,120]
[404837169,1770609039399,-500.0,0.00044356,120]
[404837170,1770609039408,-324.76,0.00044356,120]
[404837171,1770609039418,-500.0,0.00044356,120]
[404837172,1770609039427,-500.0,0.00044356,120]
[404837173,1770609039435,-500.0,0.00044356,120]
[404837174,1770609039445,-500.0,0.00044356,120]
[404837175,1770609039454,-500.0,0.00044356,120]
[404837176,1770609039463,-500.0,0.00044356,120]
[404837177,1770609039472,-500.0,0.00044356,120]
[404837178,1770609039483,-500.0,0.00044356,120]
[404837179,1770609039492,-500.0,0.00044356,120]
[404837180,1770609039501,-500.0,0.00044356,120]
[404837181,1770609039511,-500.0,0.00044356,120]
[404837182,1770609039521,-500.0,0.00044356,120]
[404837183,1770609039531,-588.80294898,0.00044356,120]
[404837184,1770609039543,-501.54,0.00044356,120]
[404837185,1770609039554,-500.0,0.00044356,120]
[404837186,1770609039564,-500.0,0.00044356,120]
[404837187,1770609039572,-500.0,0.00044356,120]
[404837188,1770609039582,-496.95469971,0.00044356,120]
[404837189,1770609039591,-500.0,0.00044356,120]
[404837190,1770609039602,-519.69386417,0.00044356,120]
[404837191,1770609039611,-530.90015641,0.00044356,120]
[404837192,1770609039621,-500.0,0.00044356,120]
[404837193,1770609039632,-500.0,0.00044356,120]
[404837194,1770609039641,-500.0,0.00044356,120]
[404837195,1770609039651,-500.0,0.00044356,120]
[404837196,1770609039661,-500.0,0.00044356,120]
[404837197,1770609039671,-342.87577432,0.00044356,120]
[404837198,1770609039680,-314.60004688,0.00044356,120]
[404837199,1770609039690,-500.0,0.00044356,120]
[404837200,1770609039699,-500.0,0.00044356,120]
[404837201,1770609039708,-520.05,0.00044356,120]
[404837202,1770609039717,-500.0,0.00044356,120]
[404837203,1770609039728,-329.23852339,0.00044356,120]
[404837204,1770609039740,-500.0,0.00044356,120]
[404837205,1770609039749,-500.0,0.00044356,120]
[404837206,1770609039761,-500.0,0.00044356,120]
[404837207,1770609039770,-500.0,0.00044356,120]
[404837208,1770609039781,-581.12,0.00044356,120]
[404837209,1770609039792,-581.12,0.00044356,120]
[404837210,1770609039802,-500.0,0.00044356,120]
[404837211,1770609039812,-500.0,0.00044356,120]
[404837212,1770609039822,-590.0229738,0.00044356,120]
[404837213,1770609039832,-500.0,0.00044356,120]
[404837214,1770609039843,-500.0,0.00044356,120]
[404837215,1770609039854,-500.0,0.00044356,120]
[404837216,1770609039865,-500.0,0.00044356,120]
[404837217,1770609039875,-500.0,0.00044356,120]
[404837218,1770609039885,-500.0,0.00044356,120]
[404837219,1770609039893,-500.0,0.00044356,120]
[404837220,1770609039903,-500.0,0.00044356,120]
[404837221,1770609039912,-500.0,0.00044356,120]
[404837222,1770609039923,-500.0,0.00044356,120]
[404837223,1770609039934,-500.0,0.00044356,120]
[404837224,1770609039945,-500.0,0.00044356,120]
[404837225,1770609039956,-490.72696573,0.00044356,120]
[404837226,1770609039967,-3485.0,0.00044359,2]
[404837227,1770609039978,-616.0,0.00044359,2]
[404837228,1770609039987,-204.02,0.00044359,2]
[404837229,1770609039996,-2117.87,0.00044359,2]
[404837230,1770609040006,-1234.285,0.00044359,2]
[404837231,1770609040016,-14785.0,0.00044367,30]
[404837232,1770609040025,-150.0,0.000444,74]
[404837233,1770609040037,-200.0,0.00044432,120]
[404837234,1770609040045,-150.0,0.00044438,30]
[404837235,1770609040054,-150.0,0.00044438,30]
[404837236,1770609040064,-150.0,0.00044438,30]
[404837237,1770609040075,-150.0,0.00044438,30]
[404837238,1770609040084,-150.00000001,0.00044438,30]
[404837239,1770609040095,-150.0,0.00044438,30]
[404837240,1770609040106,-150.0,0.00044438,30]
[404837241,1770609040117,-166.7450837,0.00044439,7]
[404837242,1770609040128,-1186.6,0.00044441,120]
[404837243,1770609040137,-497.43493512,0.00044448,120]
[404837244,1770609040147,-500.0,0.00044448,120]
[404837245,1770609040157,-500.0,0.00044448,120]
[404837246,1770609040166,-333.45768426,0.00044448,120]
[404837247,1770609040176,-375.67332369,0.00044448,120]
[404837248,1770609040187,-500.0,0.00044448,120]
[404837250,1770609040196,-500.0,0.00044448,120]
[404837252,1770609040205,-519.06358037,0.00044448,120]
[404837253,1770609040214,-500.0,0.00044448,120]
[404837254,1770609040223,-528.25962077,0.00044448,120]
[404837255,1770609040232,-500.0,0.00044448,120]
[404837256,1770609040241,-345.69945423,0.00044448,120]
[404837258,1770609040251,-501.54,0.00044448,120]
[404837260,1770609040261,-501.54,0.00044448,120]
[404837262,1770609040271,-501.54,0.00044448,120]
[404837264,1770609040281,-501.54,0.00044448,120]
[404837266,1770609040290,-501.54,0.00044448,120]
[404837268,1770609040300,-501.54,0.00044448,120]
[404837270,1770609040309,-480.40842891,0.00044448,120]
[404837272,1770609040319,-501.54,0.00044448,120]
[404837274,1770609040328,-501.54,0.00044448,120]
[404837276,1770609040338,-501.54,0.00044448,120]
[404837278,1770609040347,-501.54,0.00044448,120]
[404837280,1770609040356,-501.54,0.00044448,120]
[404837282,1770609040366,-501.54,0.00044448,120]
[404837283,1770609040375,-501.54,0.00044448,120]
[404837284,1770609040385,-501.54,0.00044448,120]
[404837285,1770609040396,-501.54,0.00044448,120]
[404837286,1770609040407,-500.0,0.00044448,120]
[404837287,1770609040418,-501.54,0.00044448,120]
[404837288,1770609040430,-500.0,0.00044448,120]
[404837289,1770609040440,-501.54,0.00044448,120]
[404837290,1770609040449,-511.32233232,0.00044448,120]
[404837291,1770609040459,-501.54,0.00044448,120]
[404837292,1770609040469,-501.54,0.00044448,120]
[404837293,1770609040480,-501.54,0.00044448,120]
[404837294,1770609040491,-501.54,0.00044448,120]
[404837295,1770609040502,-501.54,0.00044448,120]
[404837296,1770609040517,-501.74430751,0.00044448,120]
[404837297,1770609040527,-500.0,0.00044448,120]
[404837298,1770609040536,-500.0,0.00044448,120]
[404837299,1770609040545,-500.0,0.00044448,120]
[404837300,1770609040554,-519.77334736,0.00044448,120]
[404837301,1770609040564,-500.0,0.00044448,120]
[404837302,1770609040573,-500.0,0.00044448,120]
[404837303,1770609040582,-500.0,0.00044448,120]
[404837304,1770609040591,-500.0,0.00044448,120]
[404837305,1770609040599,-613.87683819,0.00044448,120]
[404837306,1770609040757,-428.04670299,0.00044448,120]
[404837307,1770609040768,-500.0,0.00044448,120]
[404837308,1770609040778,-500.0,0.00044448,120]
[404837309,1770609040787,-500.0,0.00044448,120]
[404837310,1770609040797,-500.0,0.00044448,120]
[404837311,1770609040806,-500.0,0.00044448,120]
[404837312,1770609040817,-500.0,0.00044448,120]
[404837313,1770609040826,-500.0,0.00044448,120]
[404837314,1770609040836,-500.0,0.00044448,120]
[404837315,1770609040845,-500.0,0.00044448,120]
[404837316,1770609040855,-500.0,0.00044448,120]
[404837317,1770609040864,-500.0,0.00044448,120]
[404837318,1770609040873,-500.0,0.00044448,120]
[404837319,1770609040882,-500.0,0.00044448,120]
[404837320,1770609040894,-500.0,0.00044448,120]
[404837321,1770609040904,-637.25115948,0.00044448,120]
[404837322,1770609040915,-500.0,0.00044448,120]
[404837323,1770609040925,-500.0,0.00044448,120]
[404837324,1770609040937,-524.56136285,0.00044448,120]
[404837325,1770609040947,-500.0,0.00044448,120]
[404837326,1770609040959,-500.0,0.00044448,120]
[404837327,1770609040970,-500.0,0.00044448,120]
[404837328,1770609040981,-500.0,0.00044448,120]
[404837329,1770609040990,-500.0,0.00044448,120]
[404837330,1770609040999,-500.0,0.00044448,120]
[404837331,1770609041008,-500.0,0.00044448,120]
[404837332,1770609041018,-616.59064793,0.00044448,120]
[404837333,1770609041028,-581.12,0.00044448,120]
[404837334,1770609041040,-581.12,0.00044448,120]
[404837335,1770609041050,-581.12,0.00044448,120]
[404837336,1770609041060,-581.12,0.00044448,120]
[404837337,1770609041070,-581.12,0.00044448,120]
[404837338,1770609041081,-581.12,0.00044448,120]
[404837339,1770609041092,-581.12,0.00044448,120]